[Event "*** Titled Tuesday Blitz"]
[Site "Chess.com"]
[Date "2019.08.06"]
[Round "4"]
[White "kinga2008"]
[Black "FredddieCroderg"]
[Result "1-0"]
[WhiteElo "1931"]
[BlackElo "2150"]
[TimeControl "180+2"]
[EndTime "13:52:42 PDT"]
[Termination "kinga2008 won by checkmate"]

1. e4 {[%clk 0:02:57.6]} 1... c6 {[%clk 0:02:58.9]} 2. d4 {[%clk 0:02:56.9]}
2... d5 {[%clk 0:02:56.5]} 3. e5 {[%clk 0:02:55.5]} 3... Bf5 {[%clk 0:02:56.4]}
4. Nc3 {[%clk 0:02:56.4]} 4... e6 {[%clk 0:02:56.7]} 5. g4 {[%clk 0:02:55.2]}
5... Bg6 {[%clk 0:02:58.1]} 6. Nge2 {[%clk 0:02:50.9]} 6... c5 {[%clk
0:02:58.4]} 7. Be3 {[%clk 0:02:44.1]} 7... Nc6 {[%clk 0:02:56.3]} 8. Nf4 {[%clk
0:02:39.9]} 8... cxd4 {[%clk 0:02:55.2]} 9. Bxd4 {[%clk 0:02:35.7]} 9... Nge7
{[%clk 0:02:55.5]} 10. h4 {[%clk 0:02:22]} 10... Nxd4 {[%clk 0:02:55.7]} 11.
Qxd4 {[%clk 0:02:19.3]} 11... Nc6 {[%clk 0:02:56.7]} 12. Bb5 {[%clk 0:02:17.7]}
12... a6 {[%clk 0:02:32.1]} 13. Bxc6+ {[%clk 0:02:14.5]} 13... bxc6 {[%clk
0:02:33]} 14. h5 {[%clk 0:02:13.3]} 14... Bxc2 {[%clk 0:02:23.6]} 15. Rc1 {[%clk
0:02:08.2]} 15... c5 {[%clk 0:02:19.2]} 16. Qd2 {[%clk 0:01:57.8]} 16... Be4
{[%clk 0:02:19.2]} 17. Nxe4 {[%clk 0:01:53.8]} 17... dxe4 {[%clk 0:02:19.8]} 18.
Qe3 {[%clk 0:01:54.1]} 18... Qd4 {[%clk 0:02:15.7]} 19. Qxd4 {[%clk 0:01:39.3]}
19... cxd4 {[%clk 0:02:16.5]} 20. Ke2 {[%clk 0:01:30.1]} 20... Be7 {[%clk
0:02:14.1]} 21. Rc4 {[%clk 0:01:21.4]} 21... Bg5 {[%clk 0:02:11.6]} 22. Nh3
{[%clk 0:01:17]} 22... d3+ {[%clk 0:02:12.4]} 23. Kd1 {[%clk 0:01:16.1]} 23...
Be7 {[%clk 0:01:52]} 24. Rxe4 {[%clk 0:01:14]} 24... O-O {[%clk 0:01:52.8]} 25.
Kd2 {[%clk 0:01:12.7]} 25... Rab8 {[%clk 0:01:50.3]} 26. b3 {[%clk 0:01:09.4]}
26... Rfd8 {[%clk 0:01:48.2]} 27. Rd1 {[%clk 0:00:58.6]} 27... Bb4+ {[%clk
0:01:48.5]} 28. Ke3 {[%clk 0:00:56.8]} 28... d2 {[%clk 0:01:48.1]} 29. Nf4
{[%clk 0:00:50.1]} 29... a5 {[%clk 0:01:48.2]} 30. Nd3 {[%clk 0:00:48.7]} 30...
Bc3 {[%clk 0:01:45.9]} 31. Rc4 {[%clk 0:00:43.3]} 31... Rbc8 {[%clk 0:01:41.3]}
32. Rxc8 {[%clk 0:00:23.1]} 32... Rxc8 {[%clk 0:01:41.6]} 33. f4 {[%clk
0:00:22.3]} 33... h6 {[%clk 0:01:41.4]} 34. Nf2 {[%clk 0:00:17.9]} 34... Bb4
{[%clk 0:01:33.6]} 35. Nd3 {[%clk 0:00:09.1]} 35... Rc3 {[%clk 0:01:23.2]} 36.
Ke2 {[%clk 0:00:10]} 36... Be7 {[%clk 0:01:06.6]} 37. Kxd2 {[%clk 0:00:07.6]}
37... Rc8 {[%clk 0:01:05.2]} 38. Rc1 {[%clk 0:00:08.6]} 38... Rd8 {[%clk
0:01:05.3]} 39. Rc7 {[%clk 0:00:05.7]} 39... Bb4+ {[%clk 0:01:03.1]} 40. Ke3
{[%clk 0:00:06]} 40... Bf8 {[%clk 0:00:55.5]} 41. Ra7 {[%clk 0:00:05.4]} 41...
Rd5 {[%clk 0:00:56.1]} 42. Ke4 {[%clk 0:00:04.8]} 42... Ba3 {[%clk 0:00:46.4]}
43. f5 {[%clk 0:00:03.2]} 43... Bf8 {[%clk 0:00:30.8]} 44. fxe6 {[%clk
0:00:04.2]} 44... fxe6 {[%clk 0:00:31.9]} 45. Nf4 {[%clk 0:00:05.2]} 45... Rb5
{[%clk 0:00:29.5]} 46. Nxe6 {[%clk 0:00:05.3]} 46... Rb4+ {[%clk 0:00:30.8]} 47.
Kf5 {[%clk 0:00:06]} 47... Rb8 {[%clk 0:00:27.3]} 48. Nxf8 {[%clk 0:00:02.8]}
48... Rxf8+ {[%clk 0:00:28.2]} 49. Kg6 {[%clk 0:00:04.2]} 49... Re8 {[%clk
0:00:23.2]} 50. Rxg7+ {[%clk 0:00:05.5]} 50... Kh8 {[%clk 0:00:23.7]} 51. Rh7+
{[%clk 0:00:06.7]} 51... Kg8 {[%clk 0:00:24.6]} 52. Rxh6 {[%clk 0:00:07]} 52...
Rxe5 {[%clk 0:00:21.5]} 53. g5 {[%clk 0:00:06.7]} 53... Re2 {[%clk 0:00:18.5]}
54. Kf6 {[%clk 0:00:06.4]} 54... Rxa2 {[%clk 0:00:18.1]} 55. Rg6+ {[%clk
0:00:07.7]} 55... Kh7 {[%clk 0:00:16.8]} 56. Rg7+ {[%clk 0:00:07.5]} 56... Kh8
{[%clk 0:00:17.3]} 57. h6 {[%clk 0:00:03.8]} 57... Rb2 {[%clk 0:00:15.4]} 58.
Rb7 {[%clk 0:00:03.3]} 58... a4 {[%clk 0:00:15.8]} 59. Rb8+ {[%clk 0:00:04.3]}
59... Kh7 {[%clk 0:00:16.7]} 60. g6+ {[%clk 0:00:05.4]} 60... Kxh6 {[%clk
0:00:18.3]} 61. Rh8# {[%clk 0:00:06.7]} 1-0

[Event "*** Titled Tuesday Blitz"]
[Site "Chess.com"]
[Date "2019.08.06"]
[Round "4"]
[White "TregubovP"]
[Black "Rhemmy"]
[Result "1/2-1/2"]
[WhiteElo "2508"]
[BlackElo "2503"]
[TimeControl "180+2"]
[EndTime "13:52:42 PDT"]
[Termination "Game drawn by repetition"]

1. e4 {[%clk 0:03:01.9]} 1... e5 {[%clk 0:03:00.9]} 2. Nf3 {[%clk 0:03:02]} 2...
Nc6 {[%clk 0:03:02.1]} 3. Bb5 {[%clk 0:03:03.6]} 3... a6 {[%clk 0:03:02.8]} 4.
Ba4 {[%clk 0:03:04.5]} 4... b5 {[%clk 0:03:04.4]} 5. Bb3 {[%clk 0:03:04.8]} 5...
Na5 {[%clk 0:03:06]} 6. Nxe5 {[%clk 0:02:49]} 6... Nxb3 {[%clk 0:03:06.5]} 7.
axb3 {[%clk 0:02:49.8]} 7... Qe7 {[%clk 0:03:08]} 8. d4 {[%clk 0:02:49.3]} 8...
d6 {[%clk 0:03:09]} 9. Nf3 {[%clk 0:02:37.8]} 9... Qxe4+ {[%clk 0:03:10.9]} 10.
Be3 {[%clk 0:02:38.6]} 10... Bf5 {[%clk 0:03:12.3]} 11. Nc3 {[%clk 0:02:30.2]}
11... Qxc2 {[%clk 0:03:09.5]} 12. Qxc2 {[%clk 0:02:09.3]} 12... Bxc2 {[%clk
0:03:11.4]} 13. Nxb5 {[%clk 0:02:09.5]} 13... Rc8 {[%clk 0:03:13]} 14. Rxa6
{[%clk 0:02:06.2]} 14... Ne7 {[%clk 0:03:09]} 15. Ra7 {[%clk 0:01:33.2]} 15...
Kd7 {[%clk 0:02:53.2]} 16. Kd2 {[%clk 0:01:17.4]} 16... Bxb3 {[%clk 0:02:54]}
17. Rc1 {[%clk 0:01:17.8]} 17... Nc6 {[%clk 0:02:19.9]} 18. Rb7 {[%clk
0:00:58.3]} 18... Bd5 {[%clk 0:02:13.1]} 19. Nc3 {[%clk 0:00:59.2]} 19... Na5
{[%clk 0:01:42.6]} 20. Ra7 {[%clk 0:00:59.9]} 20... Nb3+ {[%clk 0:01:35.9]} 21.
Kc2 {[%clk 0:01:00.5]} 21... Bxf3 {[%clk 0:01:31.1]} 22. Kxb3 {[%clk 0:00:55.5]}
22... Bxg2 {[%clk 0:01:10.4]} 23. Nb5 {[%clk 0:00:56.5]} 23... Bd5+ {[%clk
0:01:02.3]} 24. Kb4 {[%clk 0:00:30.6]} 24... Bc6 {[%clk 0:00:59.3]} 25. d5
{[%clk 0:00:30.6]} 25... Bxb5 {[%clk 0:00:55.9]} 26. Kxb5 {[%clk 0:00:31.8]}
26... Be7 {[%clk 0:00:55.6]} 27. Bb6 {[%clk 0:00:25.9]} 27... Bd8 {[%clk
0:00:54.6]} 28. Ba5 {[%clk 0:00:24.1]} 28... Re8 {[%clk 0:00:52.9]} 29. Rc2
{[%clk 0:00:24]} 29... Re5 {[%clk 0:00:52.4]} 30. Kc4 {[%clk 0:00:20.8]} 30...
Ke8 {[%clk 0:00:49.1]} 31. Bc3 {[%clk 0:00:19.1]} 31... Rg5 {[%clk 0:00:39.9]}
32. Re2+ {[%clk 0:00:14.9]} 32... Kd7 {[%clk 0:00:40.9]} 33. b4 {[%clk
0:00:15.3]} 33... Rg4+ {[%clk 0:00:38.4]} 34. Kd3 {[%clk 0:00:11.2]} 34... Rb8
{[%clk 0:00:39.8]} 35. f3 {[%clk 0:00:08.6]} 35... Rg6 {[%clk 0:00:35.5]} 36.
Kc4 {[%clk 0:00:06.7]} 36... Bf6 {[%clk 0:00:31.4]} 37. Bxf6 {[%clk 0:00:04.1]}
37... Rxf6 {[%clk 0:00:33.3]} 38. b5 {[%clk 0:00:02.2]} 38... Rxf3 {[%clk
0:00:30.9]} 39. Rb2 {[%clk 0:00:03.3]} 39... Rf4+ {[%clk 0:00:31.4]} 40. Kd3
{[%clk 0:00:04.6]} 40... Rb6 {[%clk 0:00:31.7]} 41. Ke3 {[%clk 0:00:05.8]} 41...
Rh4 {[%clk 0:00:31.3]} 42. Rc2 {[%clk 0:00:06.4]} 42... Ke7 {[%clk 0:00:21]} 43.
Rcxc7+ {[%clk 0:00:06.9]} 43... Kf6 {[%clk 0:00:22.5]} 44. Rxf7+ {[%clk
0:00:08.5]} 44... Ke5 {[%clk 0:00:22]} 45. Rxg7 {[%clk 0:00:09.7]} 45... Rh3+
{[%clk 0:00:21.7]} 46. Kf2 {[%clk 0:00:09.9]} 46... Rxh2+ {[%clk 0:00:23.2]} 47.
Kg3 {[%clk 0:00:10.6]} 47... Rh5 {[%clk 0:00:23.9]} 48. Rxh7 {[%clk 0:00:10.5]}
48... Rxh7 {[%clk 0:00:24.3]} 49. Rxh7 {[%clk 0:00:11.5]} 49... Rxb5 {[%clk
0:00:25.6]} 50. Kf3 {[%clk 0:00:12.2]} 50... Rb3+ {[%clk 0:00:24.2]} 51. Ke2
{[%clk 0:00:12.9]} 51... Kxd5 {[%clk 0:00:25.6]} 52. Kd2 {[%clk 0:00:13.6]}
52... Ra3 {[%clk 0:00:25.1]} 53. Rh4 {[%clk 0:00:14.2]} 53... Kc5 {[%clk
0:00:25.8]} 54. Rg4 {[%clk 0:00:15.3]} 54... d5 {[%clk 0:00:26.9]} 55. Rh4
{[%clk 0:00:16.6]} 55... Rg3 {[%clk 0:00:27.5]} 56. Rf4 {[%clk 0:00:17.3]} 56...
Rg2+ {[%clk 0:00:29]} 57. Kd3 {[%clk 0:00:17.9]} 57... Rg3+ {[%clk 0:00:30.6]}
58. Kd2 {[%clk 0:00:18.2]} 58... Rh3 {[%clk 0:00:32.1]} 59. Rg4 {[%clk
0:00:19.2]} 59... d4 {[%clk 0:00:33.4]} 60. Rg8 {[%clk 0:00:19.9]} 60... Rh2+
{[%clk 0:00:33.5]} 61. Kd3 {[%clk 0:00:20.5]} 61... Rh3+ {[%clk 0:00:34.9]} 62.
Kd2 {[%clk 0:00:21.9]} 62... Kc4 {[%clk 0:00:35.4]} 63. Rc8+ {[%clk 0:00:22.6]}
63... Kd5 {[%clk 0:00:36.9]} 64. Rd8+ {[%clk 0:00:23.8]} 64... Kc4 {[%clk
0:00:38.2]} 65. Rc8+ {[%clk 0:00:24.9]} 65... Kd5 {[%clk 0:00:39.6]} 66. Rd8+
{[%clk 0:00:25.6]} 66... Kc4 {[%clk 0:00:41]} 67. Rc8+ {[%clk 0:00:26.8]}
1/2-1/2

[Event "*** Titled Tuesday Blitz"]
[Site "Chess.com"]
[Date "2019.08.06"]
[Round "4"]
[White "Pakarma"]
[Black "CookiesAndIceCream"]
[Result "1-0"]
[WhiteElo "2407"]
[BlackElo "2338"]
[TimeControl "180+2"]
[EndTime "13:52:47 PDT"]
[Termination "Pakarma won by resignation"]

1. e4 {[%clk 0:03:01.9]} 1... e6 {[%clk 0:03:01.3]} 2. d4 {[%clk 0:03:01.5]}
2... d5 {[%clk 0:03:02.7]} 3. Nc3 {[%clk 0:03:02.1]} 3... Nf6 {[%clk 0:03:03.7]}
4. Bg5 {[%clk 0:03:02.6]} 4... dxe4 {[%clk 0:03:03.2]} 5. Nxe4 {[%clk
0:03:02.3]} 5... Be7 {[%clk 0:03:04.7]} 6. Bxf6 {[%clk 0:03:00.6]} 6... gxf6
{[%clk 0:03:05.2]} 7. Nf3 {[%clk 0:03:02.5]} 7... f5 {[%clk 0:03:05.8]} 8. Ng3
{[%clk 0:03:03.3]} 8... h5 {[%clk 0:03:05.6]} 9. h4 {[%clk 0:03:02.5]} 9... c5
{[%clk 0:03:04.5]} 10. dxc5 {[%clk 0:02:57.9]} 10... Qxd1+ {[%clk 0:02:36.7]}
11. Rxd1 {[%clk 0:02:59.8]} 11... Bxc5 {[%clk 0:02:37.3]} 12. Ne5 {[%clk
0:02:52.6]} 12... a6 {[%clk 0:02:17]} 13. Be2 {[%clk 0:02:34.4]} 13... Nd7
{[%clk 0:02:04.1]} 14. Nxd7 {[%clk 0:02:30.5]} 14... Bxd7 {[%clk 0:02:04.5]} 15.
Nxh5 {[%clk 0:02:29.6]} 15... Bc6 {[%clk 0:01:57.2]} 16. Nf4 {[%clk 0:02:13.9]}
16... Ke7 {[%clk 0:01:47.7]} 17. h5 {[%clk 0:02:10.7]} 17... Bd6 {[%clk
0:01:42.8]} 18. Rh4 {[%clk 0:01:58.4]} 18... Bxf4 {[%clk 0:01:35.3]} 19. Rxf4
{[%clk 0:02:00.3]} 19... Bxg2 {[%clk 0:01:16.8]} 20. Rd3 {[%clk 0:01:28.5]}
20... Be4 {[%clk 0:01:04.8]} 21. Rc3 {[%clk 0:01:19.8]} 21... Rag8 {[%clk
0:00:38.8]} 22. Rc7+ {[%clk 0:01:12.6]} 22... Kf6 {[%clk 0:00:37.2]} 23. Rh4
{[%clk 0:00:50.5]} 23... Rg1+ {[%clk 0:00:36.2]} 24. Kd2 {[%clk 0:00:48.3]}
24... Bd5 {[%clk 0:00:19.3]} 25. c4 {[%clk 0:00:34.4]} 25... Bc6 {[%clk
0:00:17.5]} 26. b4 {[%clk 0:00:32.1]} 26... e5 {[%clk 0:00:14.1]} 27. b5 {[%clk
0:00:31.7]} 27... axb5 {[%clk 0:00:15.3]} 28. cxb5 {[%clk 0:00:33.6]} 28... Bd5
{[%clk 0:00:16.6]} 29. a4 {[%clk 0:00:27.5]} 29... f4 {[%clk 0:00:16.7]} 30. h6
{[%clk 0:00:21.4]} 30... Kg5 {[%clk 0:00:16.9]} 31. Rh5+ {[%clk 0:00:21.2]}
31... Kg6 {[%clk 0:00:16.2]} 32. Rxe5 {[%clk 0:00:21.7]} 32... Rd8 {[%clk
0:00:14.5]} 33. Bd3+ {[%clk 0:00:19.1]} 33... Kxh6 {[%clk 0:00:12.1]} 34. Ke2
{[%clk 0:00:16.6]} 34... Kg7 {[%clk 0:00:11.6]} 35. Rf5 {[%clk 0:00:14.6]} 35...
f3+ {[%clk 0:00:12]} 36. Ke3 {[%clk 0:00:15.2]} 36... Re1+ {[%clk 0:00:13.3]}
37. Kf4 {[%clk 0:00:15.8]} 37... Be6 {[%clk 0:00:14.5]} 38. Rg5+ {[%clk
0:00:16.8]} 38... Kf6 {[%clk 0:00:15.9]} 39. Be4 {[%clk 0:00:09.9]} 39... Rd4
{[%clk 0:00:13.9]} 40. Re5 {[%clk 0:00:09.9]} 40... Rh1 {[%clk 0:00:12.1]} 41.
Rxb7 {[%clk 0:00:03]} 41... Rh4+ {[%clk 0:00:12]} 42. Kg3 {[%clk 0:00:04.3]}
42... Rhxe4 {[%clk 0:00:12.3]} 43. Rxe4 {[%clk 0:00:06.2]} 43... Rxe4 {[%clk
0:00:13.4]} 44. a5 {[%clk 0:00:08.1]} 44... Rb4 {[%clk 0:00:12.1]} 45. a6 {[%clk
0:00:08.1]} 45... Bc4 {[%clk 0:00:12.7]} 46. a7 {[%clk 0:00:09]} 46... Ra4
{[%clk 0:00:13.8]} 47. b6 {[%clk 0:00:10.2]} 47... Bd5 {[%clk 0:00:15]} 48. Rb8
{[%clk 0:00:11.2]} 48... Kg5 {[%clk 0:00:16.1]} 49. Rg8+ {[%clk 0:00:11.5]}
49... Kf5 {[%clk 0:00:16.2]} 50. Rd8 {[%clk 0:00:10.9]} 50... Ke6 {[%clk
0:00:15]} 51. Rxd5 {[%clk 0:00:10.9]} 51... Kxd5 {[%clk 0:00:16.9]} 52. b7
{[%clk 0:00:12.8]} 52... Rxa7 {[%clk 0:00:18]} 53. b8=Q {[%clk 0:00:14]} 53...
Rd7 {[%clk 0:00:19]} 54. Kxf3 {[%clk 0:00:13.6]} 54... Ke6 {[%clk 0:00:19.9]}
55. Ke4 {[%clk 0:00:14]} 55... Ke7 {[%clk 0:00:21.6]} 56. Ke5 {[%clk 0:00:15.2]}
56... f6+ {[%clk 0:00:22.6]} 57. Kf5 {[%clk 0:00:16.4]} 57... Rd5+ {[%clk
0:00:23.6]} 58. Ke4 {[%clk 0:00:17.6]} 58... Rd7 {[%clk 0:00:22]} 59. f4 {[%clk
0:00:17.7]} 59... Ke6 {[%clk 0:00:21.9]} 60. Qg8+ {[%clk 0:00:17.3]} 60... Kd6
{[%clk 0:00:21.8]} 61. Kf5 {[%clk 0:00:18]} 1-0

[Event "*** Titled Tuesday Blitz"]
[Site "Chess.com"]
[Date "2019.08.06"]
[Round "4"]
[White "Walter_White_Poland"]
[Black "PotapovaM"]
[Result "1-0"]
[WhiteElo "2338"]
[BlackElo "2468"]
[TimeControl "180+2"]
[EndTime "13:52:55 PDT"]
[Termination "Walter_White_Poland won by resignation"]

1. e4 {[%clk 0:03:01.9]} 1... c5 {[%clk 0:03:00.3]} 2. Nf3 {[%clk 0:03:02.7]}
2... d6 {[%clk 0:03:01.6]} 3. d4 {[%clk 0:03:03.8]} 3... cxd4 {[%clk 0:03:02.8]}
4. Nxd4 {[%clk 0:03:04.7]} 4... Nf6 {[%clk 0:03:04]} 5. Nc3 {[%clk 0:03:06.2]}
5... a6 {[%clk 0:03:05.1]} 6. Bg5 {[%clk 0:03:07.2]} 6... e6 {[%clk 0:03:05.6]}
7. f4 {[%clk 0:03:08.2]} 7... h6 {[%clk 0:03:06.8]} 8. Bh4 {[%clk 0:03:08]} 8...
Qb6 {[%clk 0:03:07.4]} 9. Qd3 {[%clk 0:03:00.9]} 9... Qxb2 {[%clk 0:03:01.8]}
10. Rb1 {[%clk 0:03:01.3]} 10... Qa3 {[%clk 0:03:03.1]} 11. f5 {[%clk
0:02:52.8]} 11... Be7 {[%clk 0:02:58.3]} 12. fxe6 {[%clk 0:02:47.9]} 12... Bxe6
{[%clk 0:03:00.2]} 13. Nxe6 {[%clk 0:02:37.3]} 13... fxe6 {[%clk 0:02:59.7]} 14.
Rxb7 {[%clk 0:01:37.9]} 14... Nc6 {[%clk 0:02:33.9]} 15. Be2 {[%clk 0:01:14.3]}
15... O-O {[%clk 0:01:48.5]} 16. O-O {[%clk 0:01:11.5]} 16... Rae8 {[%clk
0:01:22.5]} 17. Qc4 {[%clk 0:00:38.9]} 17... Nd8 {[%clk 0:01:05.4]} 18. Rb3
{[%clk 0:00:26.2]} 18... Qa5 {[%clk 0:01:06.6]} 19. Qxa6 {[%clk 0:00:21.7]}
19... Qe5 {[%clk 0:01:01]} 20. Qd3 {[%clk 0:00:15.7]} 20... Nc6 {[%clk
0:00:46.9]} 21. Bg3 {[%clk 0:00:16.3]} 21... Qd4+ {[%clk 0:00:48]} 22. Qxd4
{[%clk 0:00:15.6]} 22... Nxd4 {[%clk 0:00:49.9]} 23. Rb7 {[%clk 0:00:15.6]}
23... Nxe4 {[%clk 0:00:32.9]} 24. Rxf8+ {[%clk 0:00:14.2]} 24... Kxf8 {[%clk
0:00:23.3]} 25. Nxe4 {[%clk 0:00:13]} 25... Nxe2+ {[%clk 0:00:24]} 26. Kf2
{[%clk 0:00:14.2]} 26... Nd4 {[%clk 0:00:21.3]} 27. Nxd6 {[%clk 0:00:11.9]}
27... Ra8 {[%clk 0:00:19.4]} 28. Rb2 {[%clk 0:00:06.9]} 28... h5 {[%clk
0:00:15.4]} 29. c3 {[%clk 0:00:08]} 29... Nc6 {[%clk 0:00:15.8]} 30. Ne4 {[%clk
0:00:08.4]} 30... e5 {[%clk 0:00:12.4]} 31. Rd2 {[%clk 0:00:08.9]} 31... h4
{[%clk 0:00:13.2]} 32. Bxh4 {[%clk 0:00:06.9]} 32... Bxh4+ {[%clk 0:00:13.7]}
33. g3 {[%clk 0:00:08.4]} 33... Be7 {[%clk 0:00:15.3]} 34. h4 {[%clk 0:00:08.4]}
34... Kf7 {[%clk 0:00:14.6]} 35. Kf3 {[%clk 0:00:08.9]} 35... Ke6 {[%clk
0:00:13.4]} 36. Kg4 {[%clk 0:00:07.9]} 36... Ra4 {[%clk 0:00:14.5]} 37. Kf3
{[%clk 0:00:07.8]} 37... Rc4 {[%clk 0:00:14]} 38. Rb2 {[%clk 0:00:07.7]} 38...
Kd5 {[%clk 0:00:09.3]} 39. Rb5+ {[%clk 0:00:08.1]} 39... Ke6 {[%clk 0:00:10.4]}
40. g4 {[%clk 0:00:08.3]} 40... Bxh4 {[%clk 0:00:07.9]} 41. g5 {[%clk
0:00:07.9]} 41... Ne7 {[%clk 0:00:07.2]} 42. Rb6+ {[%clk 0:00:07.4]} 42... Kf7
{[%clk 0:00:05.8]} 43. Nd6+ {[%clk 0:00:07.5]} 43... Kf8 {[%clk 0:00:07]} 44.
Nxc4 {[%clk 0:00:08.5]} 44... Nd5 {[%clk 0:00:08.6]} 45. Ra6 {[%clk 0:00:08.3]}
45... Nxc3 {[%clk 0:00:09.3]} 46. Nxe5 {[%clk 0:00:08.2]} 46... Bxg5 {[%clk
0:00:09]} 47. Ra7 {[%clk 0:00:05.9]} 47... Bf6 {[%clk 0:00:09.4]} 48. Nd7+
{[%clk 0:00:05.5]} 48... Ke7 {[%clk 0:00:10.4]} 49. Nxf6+ {[%clk 0:00:05.3]}
49... Kxf6 {[%clk 0:00:12.3]} 50. a4 {[%clk 0:00:05.5]} 50... g5 {[%clk
0:00:12.3]} 51. a5 {[%clk 0:00:06.4]} 51... Ke5 {[%clk 0:00:13.4]} 52. Rg7
{[%clk 0:00:06.1]} 52... Kd6 {[%clk 0:00:13.8]} 53. Rxg5 {[%clk 0:00:05.9]}
53... Kc6 {[%clk 0:00:14.2]} 54. Ke3 {[%clk 0:00:06.9]} 54... Kb7 {[%clk
0:00:07.9]} 55. Kd4 {[%clk 0:00:07.8]} 55... Na4 {[%clk 0:00:08.5]} 56. Kc4
{[%clk 0:00:07.8]} 56... Nb2+ {[%clk 0:00:09.9]} 57. Kb5 {[%clk 0:00:08.4]}
57... Nd3 {[%clk 0:00:10.2]} 58. Rg7+ {[%clk 0:00:09.2]} 58... Ka8 {[%clk
0:00:12.1]} 59. Kb6 {[%clk 0:00:09.6]} 1-0

[Event "*** Titled Tuesday Blitz"]
[Site "Chess.com"]
[Date "2019.08.06"]
[Round "4"]
[White "Muracle"]
[Black "gena217"]
[Result "1/2-1/2"]
[WhiteElo "2642"]
[BlackElo "2917"]
[TimeControl "180+2"]
[EndTime "13:52:57 PDT"]
[Termination "Game drawn by repetition"]

1. Nf3 {[%clk 0:03:01.9]} 1... d5 {[%clk 0:02:59.1]} 2. g3 {[%clk 0:03:03]} 2...
Nd7 {[%clk 0:03:00.7]} 3. d4 {[%clk 0:03:03.6]} 3... b5 {[%clk 0:03:01.2]} 4.
Bg2 {[%clk 0:03:04.4]} 4... e6 {[%clk 0:03:01.9]} 5. O-O {[%clk 0:03:05.5]} 5...
Ngf6 {[%clk 0:03:03.5]} 6. b3 {[%clk 0:03:06.9]} 6... Bb7 {[%clk 0:02:58.4]} 7.
c4 {[%clk 0:03:07.8]} 7... bxc4 {[%clk 0:02:57]} 8. bxc4 {[%clk 0:03:08.9]} 8...
dxc4 {[%clk 0:02:58.9]} 9. Qa4 {[%clk 0:03:08.7]} 9... c5 {[%clk 0:02:58.8]} 10.
dxc5 {[%clk 0:03:08.4]} 10... Bxc5 {[%clk 0:02:59.1]} 11. Rd1 {[%clk 0:03:07.2]}
11... O-O {[%clk 0:02:31.8]} 12. Qxc4 {[%clk 0:03:02.8]} 12... Qb6 {[%clk
0:02:28.3]} 13. e3 {[%clk 0:03:02.5]} 13... Rfc8 {[%clk 0:02:12.1]} 14. Qb3
{[%clk 0:03:01.4]} 14... Qa6 {[%clk 0:02:04.6]} 15. Nc3 {[%clk 0:02:50.5]} 15...
Rab8 {[%clk 0:02:03.8]} 16. Qa4 {[%clk 0:02:42]} 16... Qxa4 {[%clk 0:01:56.4]}
17. Nxa4 {[%clk 0:02:42.3]} 17... Bf8 {[%clk 0:01:58]} 18. Bd2 {[%clk
0:02:15.7]} 18... Rc4 {[%clk 0:01:50.4]} 19. Nb2 {[%clk 0:02:08.9]} 19... Rc2
{[%clk 0:01:48.3]} 20. Nd3 {[%clk 0:02:08.9]} 20... Be4 {[%clk 0:01:30]} 21. Be1
{[%clk 0:01:41.8]} 21... Nc5 {[%clk 0:01:17.6]} 22. Nde5 {[%clk 0:01:32.4]}
22... Bd5 {[%clk 0:01:12.2]} 23. Nd4 {[%clk 0:01:32]} 23... Rxa2 {[%clk
0:01:11.9]} 24. Rxa2 {[%clk 0:01:28.2]} 24... Bxa2 {[%clk 0:01:13.8]} 25. Nec6
{[%clk 0:01:28]} 25... Rb6 {[%clk 0:01:06.5]} 26. Nxa7 {[%clk 0:01:26.1]} 26...
Bd5 {[%clk 0:01:07.3]} 27. Bxd5 {[%clk 0:01:21.5]} 27... Nxd5 {[%clk 0:01:07.6]}
28. Nac6 {[%clk 0:01:22.2]} 28... Ne4 {[%clk 0:01:03.4]} 29. Ra1 {[%clk
0:01:16.7]} 29... g6 {[%clk 0:00:58.2]} 30. Kg2 {[%clk 0:01:15.5]} 30... Bd6
{[%clk 0:00:54.8]} 31. Ra8+ {[%clk 0:00:42]} 31... Kg7 {[%clk 0:00:55.4]} 32.
Na5 {[%clk 0:00:43.3]} 32... Rb1 {[%clk 0:00:44.4]} 33. Nf3 {[%clk 0:00:40.5]}
33... h5 {[%clk 0:00:41.3]} 34. Nc4 {[%clk 0:00:40.8]} 34... Rc1 {[%clk
0:00:37.9]} 35. Nxd6 {[%clk 0:00:39.6]} 35... Nxd6 {[%clk 0:00:39.8]} 36. Bd2
{[%clk 0:00:40.7]} 36... Rd1 {[%clk 0:00:39.4]} 37. h4 {[%clk 0:00:35.6]} 37...
Ne4 {[%clk 0:00:39.8]} 38. Ba5 {[%clk 0:00:36.6]} 38... Rc1 {[%clk 0:00:35.6]}
39. Ra7 {[%clk 0:00:35.9]} 39... Rc2 {[%clk 0:00:35.9]} 40. Be1 {[%clk
0:00:36.6]} 40... Nxe3+ {[%clk 0:00:34.3]} 41. Kg1 {[%clk 0:00:37.9]} 41... Ng4
{[%clk 0:00:34.5]} 42. Nd4 {[%clk 0:00:37.6]} 42... Rc1 {[%clk 0:00:34.2]} 43.
Kf1 {[%clk 0:00:38.5]} 43... Kf6 {[%clk 0:00:31.2]} 44. Ke2 {[%clk 0:00:38.1]}
44... Rb1 {[%clk 0:00:22.5]} 45. f3 {[%clk 0:00:34.8]} 45... Rb2+ {[%clk
0:00:23.1]} 46. Kd3 {[%clk 0:00:36]} 46... Nef2+ {[%clk 0:00:22.4]} 47. Kc3
{[%clk 0:00:34.8]} 47... Nd1+ {[%clk 0:00:23.4]} 48. Kd3 {[%clk 0:00:32.4]}
48... Ne5+ {[%clk 0:00:22.2]} 49. Ke4 {[%clk 0:00:33.7]} 49... Nf2+ {[%clk
0:00:18.4]} 50. Bxf2 {[%clk 0:00:30]} 50... Rxf2 {[%clk 0:00:20.3]} 51. Ra5
{[%clk 0:00:30.6]} 51... Nc4 {[%clk 0:00:20.8]} 52. Ra7 {[%clk 0:00:28.7]} 52...
Rb2 {[%clk 0:00:20.1]} 53. g4 {[%clk 0:00:29.4]} 53... Nd6+ {[%clk 0:00:21.1]}
54. Kd3 {[%clk 0:00:29.7]} 54... hxg4 {[%clk 0:00:22.1]} 55. fxg4 {[%clk
0:00:30.7]} 55... Rh2 {[%clk 0:00:23.2]} 56. g5+ {[%clk 0:00:31.3]} 56... Kg7
{[%clk 0:00:23.6]} 57. Nxe6+ {[%clk 0:00:31.8]} 57... Kh7 {[%clk 0:00:24.7]} 58.
Nd8 {[%clk 0:00:32.8]} 58... Kg8 {[%clk 0:00:21.9]} 59. Rd7 {[%clk 0:00:33]}
59... Rh3+ {[%clk 0:00:23.4]} 60. Ke2 {[%clk 0:00:32.7]} 60... Nf5 {[%clk
0:00:20]} 61. Nxf7 {[%clk 0:00:33.7]} 61... Rxh4 {[%clk 0:00:20.6]} 62. Nh6+
{[%clk 0:00:31.6]} 62... Nxh6 {[%clk 0:00:21.4]} 63. gxh6 {[%clk 0:00:33.5]}
63... Rxh6 {[%clk 0:00:23.2]} 64. Kf3 {[%clk 0:00:34.1]} 64... Rh7 {[%clk
0:00:24.7]} 65. Rxh7 {[%clk 0:00:33.2]} 65... Kxh7 {[%clk 0:00:26]} 66. Kg4
{[%clk 0:00:34.6]} 66... Kg7 {[%clk 0:00:27.6]} 67. Kg5 {[%clk 0:00:35.7]} 67...
Kf7 {[%clk 0:00:29.5]} 68. Kg4 {[%clk 0:00:37.1]} 68... Kg7 {[%clk 0:00:31.4]}
69. Kg5 {[%clk 0:00:38.3]} 69... Kf7 {[%clk 0:00:32.6]} 70. Kg4 {[%clk
0:00:39.7]} 70... Kf6 {[%clk 0:00:34.5]} 71. Kf4 {[%clk 0:00:41]} 71... g5+
{[%clk 0:00:36.4]} 72. Kg4 {[%clk 0:00:42.4]} 72... Kg6 {[%clk 0:00:38.2]} 73.
Kg3 {[%clk 0:00:43.8]} 73... Kf5 {[%clk 0:00:40.1]} 74. Kf3 {[%clk 0:00:45.1]}
74... g4+ {[%clk 0:00:42]} 75. Kg3 {[%clk 0:00:46.5]} 75... Kg5 {[%clk
0:00:43.9]} 76. Kg2 {[%clk 0:00:48]} 76... Kf4 {[%clk 0:00:45.8]} 77. Kf2 {[%clk
0:00:49.3]} 77... g3+ {[%clk 0:00:47.6]} 78. Kg2 {[%clk 0:00:50.6]} 78... Kg4
{[%clk 0:00:49.5]} 79. Kg1 {[%clk 0:00:52]} 79... Kf3 {[%clk 0:00:51.4]} 80. Kf1
{[%clk 0:00:53.3]} 80... Kf4 {[%clk 0:00:53.3]} 81. Kg2 {[%clk 0:00:54.4]} 81...
Kg4 {[%clk 0:00:54.8]} 82. Kg1 {[%clk 0:00:55.8]} 82... Kf3 {[%clk 0:00:56.7]}
83. Kf1 {[%clk 0:00:57.1]} 83... Kf4 {[%clk 0:00:58.6]} 84. Kg2 {[%clk
0:00:58.3]} 1/2-1/2